bitfinex/quotes_ETHUSD_20241106
["timestamp","ask_amount","ask_price","bid_price","bid_amount"]
[1730854204883,0.7953,2495.3,2494.4,4.00886]
[1730854205085,5.0,2495.0,2493.4,4.01058]
[1730854205401,0.5,2494.9,2493.8,4.00982]
[1730854205582,6.46695923,2495.3,2493.7,8.02007]
[1730854205784,0.66165923,2495.2,2493.7,4.00999]
[1730854206134,5.7953,2495.3,2493.8,0.08018331]
[1730854206282,5.0,2495.0,2493.3,4.01067]
[1730854206483,3.7953,2494.9,2493.4,4.01044]
[1730854206691,0.87953,2494.8,2493.4,4.01044]
[1730854206920,0.87953,2494.8,2493.5,0.08019167]
[1730854207120,0.87953,2494.8,2493.5,4.01032]
[1730854207325,0.87953,2494.8,2493.5,4.01041]
[1730854207528,0.87953,2494.8,2492.7,0.01]
[1730854207683,0.87953,2494.8,2492.2,0.7506]
[1730854207684,0.7953,2494.3,2492.9,4.01138]
[1730854207907,0.7953,2494.3,2492.2,0.7506]
[1730854207908,3.7953,2494.3,2492.2,0.7506]
[1730854208107,5.0,2494.1,2492.5,4.01193]
[1730854208536,3.0,2494.0,2492.5,8.02387]
[1730854208862,3.7953,2494.3,2492.7,4.01166]
[1730854209003,5.0,2494.0,2492.7,4.0116]
[1730854209353,0.7953,2493.9,2492.7,4.01164]
[1730854209508,3.7953,2493.9,2492.8,0.08021612]
[1730854209705,3.7953,2493.9,2492.2,0.7506]
[1730854209706,3.7953,2493.9,2492.5,8.0238]
[1730854210059,0.7953,2493.9,2492.8,35.0]
[1730854210206,5.37953,2493.8,2492.8,35.0]
[1730854210415,3.0,2493.7,2492.2,4.76305]
[1730854210617,3.0,2493.4,2491.8,0.7506]
[1730854210860,3.7953,2492.9,2491.4,5.11681172]
[1730854211156,3.7953,2492.9,2491.6,4.01348]
[1730854211157,4.01215,2492.5,2491.6,4.01348]
[1730854211327,4.01215,2492.5,2491.6,8.02687]
[1730854211328,4.0122,2492.4,2491.6,8.02687]
[1730854211689,4.01247,2492.3,2491.5,4.01362]
[1730854211818,0.7953,2492.9,2491.5,4.01362]
[1730854211819,4.0118,2492.7,2491.6,35.0802526]
[1730854212018,4.0118,2492.7,2491.9,4.01289]
[1730854212560,8.02363,2492.7,2491.9,4.01289]
[1730854212730,4.0118,2492.7,2492.0,35.0]
[1730854213114,4.01184,2492.7,2492.0,35.0]
[1730854213315,0.8202,2493.3,2492.2,0.8238]
[1730854213567,0.8202,2493.3,2492.2,4.8363]
[1730854213715,0.8202,2494.6,2493.7,4.01007]
[1730854214067,5.0,2495.4,2493.6,0.8238]
[1730854214272,0.8202,2495.0,2493.8,39.00984]
[1730854214556,0.005,2494.2,2493.8,39.00986]
[1730854214711,0.005,2494.2,2493.8,39.00981]
[1730854214914,0.005,2494.2,2493.8,35.0]
[1730854215501,0.8252,2494.2,2493.2,4.83468]
[1730854215668,0.8252,2494.2,2493.3,4.01071]
[1730854215960,0.8252,2494.2,2493.4,35.0]
[1730854216146,0.8252,2494.2,2493.4,39.01047]
[1730854216463,0.8252,2494.2,2493.4,35.0]
[1730854216777,0.8252,2494.2,2493.6,4.01022]
[1730854217065,0.005,2494.2,2493.4,4.01043]
[1730854217267,4.01012,2493.7,2493.0,4.01113]
[1730854217421,0.406425,2494.2,2493.1,35.0]
[1730854217422,4.0103,2493.6,2493.1,35.0]
[1730854217616,4.01019,2493.7,2492.8,0.8238]
[1730854217840,4.83019,2493.8,2493.0,4.01109]
[1730854218024,4.83019,2493.8,2492.8,4.83527]
[1730854218025,4.01022,2493.7,2493.1,35.0]
[1730854218227,0.8202,2493.8,2492.8,4.01155]
[1730854218228,0.483042,2493.6,2492.8,4.01155]
[1730854218442,0.8202,2493.8,2492.7,4.01161]
[1730854218625,0.8202,2493.8,2493.0,4.01114]
[1730854218819,0.8202,2493.8,2493.2,4.01078]
[1730854219045,0.8202,2493.8,2493.1,35.0]
[1730854219266,0.8202,2493.8,2492.6,4.01177]
[1730854219773,0.8202,2493.8,2492.7,35.0]
[1730854219927,0.8202,2493.8,2492.8,4.01153]
[1730854220131,1.40222,2493.8,2492.9,0.08021931]
[1730854220575,1.40222,2493.8,2493.0,4.01112]
[1730854220866,0.8202,2493.8,2493.0,39.01112]
[1730854221477,0.8202,2493.8,2493.0,35.0]
[1730854222234,0.8202,2493.8,2493.2,4.01082]
[1730854222430,0.8252,2494.2,2493.2,4.01081]
[1730854222632,0.8252,2494.2,2493.7,4.01009]
[1730854222859,0.8252,2494.2,2493.3,0.8238]
[1730854223531,0.8252,2494.2,2493.1,4.01107]
[1730854223733,0.8252,2494.2,2493.0,35.0]
[1730854223734,0.8252,2494.2,2493.4,4.01048]
[1730854224036,0.8252,2494.2,2493.0,39.01114]
[1730854224231,0.8252,2494.2,2493.1,4.09122806]
[1730854224484,0.58252,2494.1,2493.0,35.0]
[1730854224788,0.8202,2493.8,2492.4,0.8238]
[1730854224936,3.8202,2493.5,2492.0,4.83648]
[1730854225134,3.8202,2493.5,2491.5,0.51166417]
[1730854225135,3.8202,2493.2,2491.6,4.01339]
[1730854225384,3.8202,2493.2,2491.7,35.0]
[1730854225385,3.01,2493.2,2491.7,35.0]
[1730854225675,0.8202,2492.5,2491.7,35.0]
[1730854226081,0.8202,2492.5,2490.7,2.13374279]
[1730854226082,0.8202,2492.5,2490.7,1.607664]
[1730854226238,0.8202,2492.5,2490.6,0.8238]
[1730854226239,3.0,2492.0,2490.6,0.8238]
[1730854226438,0.8202,2492.2,2490.7,0.08028405]
[1730854226789,0.8202,2492.2,2490.7,0.0135056]
[1730854226951,0.8202,2491.3,2490.7,0.0135056]
[1730854227157,5.0,2491.1,2490.7,0.0135056]
[1730854227464,8.0,2490.8,2490.7,0.0135056]
[1730854228193,5.0,2490.8,2489.8,35.0]
[1730854228518,0.8202,2490.9,2490.2,4.01574]
[1730854228657,3.0,2491.5,2489.8,35.0]
[1730854228658,0.7957,2491.5,2490.3,4.417024]
[1730854228857,5.0,2491.4,2490.1,4.01584]
[1730854229067,5.0,2491.4,2490.3,4.01557]
[1730854229259,0.7957,2491.5,2490.4,4.09569863]
[1730854229475,0.7957,2491.5,2490.5,35.0]
[1730854229672,0.7957,2491.5,2490.5,39.01523]
[1730854229990,0.7957,2491.5,2490.6,4.01508]
[1730854230307,0.7957,2491.5,2490.5,43.21833348]
[1730854230593,0.7957,2491.5,2490.6,4.01506]
[1730854231356,0.7957,2491.5,2490.5,39.20309348]
[1730854231357,0.7957,2491.5,2490.5,35.0]
[1730854231575,0.7957,2491.5,2490.6,4.01495]
[1730854231769,0.7957,2491.5,2490.5,35.0]
[1730854231967,0.7957,2491.5,2490.6,4.01498]
[1730854232167,0.7957,2491.5,2490.5,35.0]
[1730854232397,1.37527,2491.5,2490.5,35.0]
[1730854233255,1.37527,2491.5,2490.5,39.01513]
[1730854233456,0.08117605,2491.4,2490.6,4.01497]
[1730854233693,0.7957,2491.5,2490.6,4.01497]
[1730854234009,0.7957,2491.5,2490.7,4.01478]
[1730854234313,0.7957,2491.5,2490.7,0.55]
[1730854234461,0.0986982,2493.8,2490.9,0.55]
[1730854234462,0.7957,2492.2,2490.9,0.55]
[1730854234659,0.7957,2492.2,2491.5,4.0136]
[1730854234862,0.7957,2492.2,2490.6,0.8127]
[1730854234863,0.07901377,2492.1,2491.4,0.55]
[1730854235094,5.01,2492.9,2490.1,0.01]
[1730854235095,5.0,2492.0,2490.2,4.01573]
[1730854235274,0.7957,2491.6,2490.2,4.01573]
[1730854235482,0.57957,2491.5,2490.3,35.0]
[1730854235672,0.65822324,2491.5,2490.3,35.0]
[1730854235869,0.57957,2491.5,2490.3,35.0]
[1730854236099,0.7957,2491.6,2490.8,4.01464]
[1730854236310,5.0,2492.4,2490.3,35.01]
[1730854236483,0.7957,2492.3,2491.0,4.01439]
[1730854236819,0.87486206,2492.3,2491.0,4.01429]
[1730854237031,5.0,2492.1,2491.1,35.0]
[1730854237377,0.7957,2491.7,2490.3,4.01546]
[1730854237571,0.07873465,2491.6,2489.8,0.8127]
[1730854237835,0.07873465,2491.6,2489.7,0.1060612]
[1730854237836,0.7957,2491.3,2489.7,0.1060612]
[1730854238034,0.7957,2490.7,2489.8,4.01626]
[1730854238425,0.07776812,2490.6,2489.9,4.01621]
[1730854238623,0.7957,2490.7,2489.7,0.1060612]
[1730854238893,0.7957,2490.7,2490.2,4.01573]
[1730854239329,0.7957,2490.7,2490.1,39.01589]
[1730854240133,0.7957,2490.7,2490.1,35.0]
[1730854240712,0.7957,2490.7,2489.7,0.1060612]
[1730854241135,5.07706002,2490.6,2489.7,0.1060612]
[1730854241436,4.382976,2490.5,2489.7,0.1060612]
[1730854241646,4.382976,2490.5,2489.7,35.1060612]
[1730854241959,0.7957,2490.2,2489.7,35.1060612]
[1730854242248,0.7957,2490.2,2489.7,0.1060612]
[1730854242249,5.0,2489.9,2489.7,0.1060612]
[1730854242400,0.0763583,2490.1,2489.7,0.1060612]
[1730854243015,0.0763583,2490.1,2489.7,4.1224712]
[1730854243215,0.7957,2490.2,2489.7,4.1224712]
[1730854243400,0.7957,2490.2,2489.8,35.0]
[1730854243604,0.787,2491.1,2489.9,4.09639687]
[1730854243800,0.07426317,2491.0,2490.0,4.01604]
[1730854244115,0.07426317,2491.0,2489.7,8.1390112]
[1730854244310,0.07426317,2491.0,2490.1,35.0]
[1730854244511,0.07050532,2491.0,2490.1,35.0]
[1730854244716,0.07050532,2491.0,2489.7,0.1060612]
[1730854244717,0.787,2490.3,2489.7,0.1060612]
[1730854245102,0.07338256,2490.2,2489.7,0.1060612]
[1730854245303,0.07338256,2490.2,2489.8,43.03262]
[1730854245553,0.787,2490.8,2489.8,39.01631]
[1730854245757,0.787,2490.8,2489.8,35.0]
[1730854245995,0.07171704,2490.7,2489.8,35.0]
[1730854247008,0.787,2490.3,2489.7,0.1060612]
[1730854247317,3.01,2490.9,2489.7,0.1060612]
[1730854247318,0.07111453,2490.2,2489.7,0.1060612]
[1730854247490,0.07111453,2490.2,2489.8,35.0]
[1730854247671,0.787,2490.6,2489.8,39.01628]
[1730854247995,0.787,2490.6,2490.0,4.0159]
[1730854248393,0.07157809,2490.5,2490.0,4.0159]
[1730854248595,0.07157809,2490.5,2490.1,35.0]
[1730854248805,0.787,2490.6,2490.1,35.0]
[1730854249021,0.5787,2490.5,2490.1,35.0]
[1730854249215,0.65027674,2490.5,2489.7,0.1060612]
[1730854249796,0.787,2490.4,2489.7,0.1060612]
[1730854249969,0.07148975,2490.3,2489.7,0.1060612]
[1730854250714,0.787,2489.6,2488.6,4.01829]
[1730854251014,0.0708703,2489.5,2488.1,4.01912]
[1730854251213,0.0708703,2489.5,2488.5,35.0]
[1730854251368,0.787,2489.6,2488.5,39.01834]
[1730854251569,0.787,2489.6,2488.5,35.0]
[1730854251770,0.5787,2489.5,2488.5,35.0]
[1730854252069,5.07039553,2489.4,2488.5,35.0]
[1730854252272,5.0,2489.1,2488.5,35.0]
[1730854252694,0.07018171,2489.0,2488.5,35.0]
[1730854253212,0.787,2489.3,2488.7,4.01816]
[1730854253364,0.787,2489.3,2488.5,35.0]
[1730854253365,0.06987369,2489.2,2488.5,39.01839]
[1730854253713,0.787,2489.3,2488.5,39.01838]
[1730854254096,0.787,2489.3,2488.6,4.01821]
[1730854254097,0.06979494,2489.2,2488.6,4.01821]
[1730854254270,0.4044,2492.2,2491.6,4.01348]
[1730854254615,2.90670916,2493.1,2492.2,4.01251]
[1730854254616,0.005,2493.1,2492.2,4.01251]
[1730854254773,0.005,2493.1,2492.6,4.56187]
[1730854254774,0.41959991,2492.7,2492.6,4.56187]
[1730854254979,0.005,2493.1,2493.0,4.02123]
[1730854255203,0.005,2493.1,2493.0,4.57123]
[1730854255398,0.005,2493.1,2493.0,4.65142629]
[1730854255713,0.005,2494.2,2493.0,4.65142629]
[1730854255714,0.005,2494.2,2493.5,0.01]
[1730854256013,0.692,2494.3,2493.6,2.10933566]
[1730854256171,0.692,2494.3,2493.5,4.10057626]
[1730854256366,0.692,2494.3,2493.3,4.02073]
[1730854256975,5.0,2494.1,2492.9,0.01]
[1730854257176,0.5,2494.0,2493.1,0.0802159]
[1730854257482,0.5,2494.0,2492.4,0.01]
[1730854257483,5.0,2493.8,2492.4,0.01]
[1730854257686,0.999278,2493.7,2492.4,0.01]
[1730854258013,0.999278,2493.7,2492.5,35.0]
[1730854258014,5.0,2493.5,2492.5,35.0]
[1730854258703,3.999278,2493.7,2492.5,35.0]
[1730854258927,0.8999278,2493.6,2492.5,39.01188]
[1730854259076,0.8261,2493.5,2492.5,39.01188]
[1730854259269,5.8261,2493.5,2492.5,35.0]
[1730854259475,6.53502919,2493.5,2492.5,35.0]
[1730854259683,6.53502919,2493.5,2492.5,39.01202]
[1730854259883,1.0434957,2493.4,2492.5,4.01202]
[1730854260116,1.0434957,2493.4,2492.4,4.01216]
[1730854260274,1.0434957,2493.4,2492.5,4.01201]
[1730854260475,1.53502919,2493.5,2492.4,35.0]
[1730854260732,5.0,2493.4,2492.1,4.02263]
[1730854261012,5.70892919,2493.4,2492.1,0.01]
[1730854261309,5.0,2493.1,2491.8,4.02305]
[1730854261676,5.0,2493.1,2491.8,4.02304]
[1730854261876,0.55782842,2493.0,2491.9,4.01294]
[1730854262084,0.8261,2492.7,2491.6,0.01]
[1730854262295,0.8261,2492.7,2491.8,4.01302]
[1730854262573,0.05745146,2492.6,2491.4,39.02369]
[1730854262797,0.64580661,2492.6,2491.8,4.01302]
[1730854263005,0.58835515,2492.6,2491.6,4.01336]
[1730854263211,5.0,2492.4,2491.4,35.0]
[1730854263411,3.0,2492.3,2491.0,0.01]
[1730854263710,3.0,2492.3,2490.6,6.10909269]
[1730854263711,0.05689649,2492.3,2491.7,0.01]
[1730854263910,0.05689649,2492.3,2491.5,4.01363]
[1730854264205,5.0,2492.6,2491.4,0.01]
[1730854264441,0.0569697,2492.5,2491.5,4.01363]
[1730854264591,0.0569697,2492.5,2491.1,0.01]
[1730854264798,0.0569697,2492.5,2490.5,0.01]
[1730854264799,5.0,2491.8,2490.5,0.01]
[1730854265030,0.05637884,2491.7,2490.8,8.02926]
[1730854265229,0.05637884,2491.7,2491.0,4.01441]
[1730854265433,5.0,2491.9,2490.8,4.01462]
[1730854265741,5.0,2491.6,2490.4,39.01536]
[1730854265937,5.0,2491.6,2490.6,4.01506]
[1730854266258,0.05723447,2491.5,2490.4,4.09558798]
[1730854266395,0.05723447,2491.5,2490.4,39.09558798]
[1730854266597,5.05723447,2491.5,2490.4,43.03059]
[1730854266820,0.58833345,2491.5,2490.6,4.01495]
[1730854267019,0.8261,2491.7,2490.7,4.01491]
[1730854267195,0.8261,2491.7,2490.7,0.01]
[1730854267410,0.8261,2491.7,2490.5,0.01]
[1730854267739,0.8261,2491.7,2490.6,4.01509]
[1730854267921,0.8261,2491.7,2490.5,0.09029631]
[1730854268118,0.62261007,2491.6,2490.4,43.03063]
[1730854268327,5.0,2491.5,2490.4,35.0]
[1730854268645,0.04000007,2491.4,2490.4,39.01532]
[1730854269000,0.04000007,2491.4,2490.5,4.01514]
[1730854269235,0.04000007,2491.4,2490.4,43.03064]
[1730854269533,0.60226108,2491.4,2490.2,4.01562]
[1730854269835,0.8825859,2491.3,2490.2,4.01562]
[1730854270035,0.04000007,2491.2,2490.2,4.01562]
[1730854270558,0.04000007,2491.2,2490.1,39.01575]
[1730854270845,0.48283618,2491.2,2490.1,39.01575]
[1730854271051,3.8261,2491.0,2489.6,9.641992]
[1730854271353,0.8261,2490.4,2489.6,1.608792]
[1730854271496,0.62261007,2490.3,2489.3,39.01709]
[1730854271705,0.67779584,2490.3,2489.5,4.01686]
[1730854271911,0.62261007,2490.3,2489.5,4.01686]
[1730854272111,0.62261007,2490.3,2489.3,43.03418]
[1730854272464,0.62261007,2490.3,2489.3,39.01708]
[1730854272811,0.62261007,2490.3,2489.5,4.01675]
[1730854273660,0.05526061,2490.2,2489.5,4.01675]
[1730854273945,0.04000007,2490.1,2489.3,39.0171]
[1730854274130,0.04000007,2490.1,2489.3,4.0171]
[1730854274335,0.05506949,2490.0,2489.3,4.0171]
[1730854274661,0.05506949,2490.0,2489.1,4.01744]
[1730854274811,0.04000007,2489.9,2488.8,4.01797]
[1730854275015,0.04000007,2489.9,2488.1,5.29874607]
[1730854275016,4.0169,2489.5,2488.5,4.01838]
[1730854275209,0.0945972,2489.4,2488.8,4.01784]
[1730854275424,0.0945972,2489.4,2488.9,4.0177]
[1730854275624,0.0945972,2489.4,2488.8,4.01784]
[1730854275837,0.0945972,2489.4,2488.9,4.01783]
[1730854276251,0.05459713,2489.4,2488.6,4.01822]
[1730854276555,0.0945972,2489.4,2488.6,4.01822]
[1730854276729,0.85283879,2489.4,2488.6,4.01821]
[1730854277061,0.05468545,2489.3,2488.8,4.01788]
[1730854277266,0.05468545,2489.3,2488.6,4.01822]
[1730854277482,4.01752,2489.1,2488.2,4.01887]
[1730854277760,4.01752,2489.1,2488.0,4.01924]
[1730854277761,4.05777007,2489.0,2488.0,4.01917]
[1730854277913,0.09369726,2489.0,2488.2,4.01885]
[1730854278111,5.00101599,2489.0,2488.0,4.01917]
[1730854278355,0.09369726,2489.0,2488.1,0.08037641]
[1730854278564,0.05369719,2489.0,2487.7,4.01977]
[1730854278718,0.04000007,2488.9,2488.2,4.01886]
[1730854278912,0.04000007,2488.9,2488.0,4.01918]
[1730854279238,0.05145675,2488.8,2488.0,4.01918]
[1730854279462,0.04000007,2488.7,2488.2,4.01889]
[1730854279771,0.05145675,2488.8,2488.1,4.0191]
[1730854279940,0.05150637,2488.6,2487.8,4.01947]
[1730854280272,0.05111063,2488.5,2488.1,4.019]
[1730854280643,0.80640007,2488.7,2488.2,4.01895]
[1730854280843,0.05091965,2488.4,2488.1,4.019]
[1730854281041,0.04000007,2489.0,2488.7,4.01812]
[1730854281239,0.04000007,2489.0,2488.2,4.01896]
[1730854281240,0.7664,2489.1,2488.2,4.01894]
[1730854281564,0.58261,2490.3,2489.4,4.01689]
[1730854281565,0.7664,2489.6,2489.4,4.01689]
[1730854281875,0.04000007,2490.1,2488.5,5.28874607]
[1730854281876,0.7664,2490.0,2489.2,4.0173]
[1730854282092,0.04000007,2489.9,2489.2,4.0173]
[1730854282429,0.04000007,2489.9,2489.4,4.0169]
[1730854282838,0.04000007,2489.9,2489.5,4.01673]
[1730854283040,0.04000007,2490.2,2489.6,0.08033103]
[1730854283279,0.7664,2490.4,2489.2,0.55]
[1730854283280,0.7664,2490.4,2490.3,4.01558]
[1730854283432,0.7664,2490.8,2490.4,4.0154]
[1730854283636,0.7664,2490.8,2490.6,4.01508]
[1730854283864,0.7664,2491.5,2490.8,4.01475]
[1730854284130,0.04000007,2491.4,2490.4,4.01534]
[1730854284467,0.04000007,2491.4,2490.5,4.01524]
[1730854284668,4.01399,2491.3,2490.3,4.01548]
[1730854284879,0.04000007,2491.2,2490.5,4.01525]
[1730854285095,0.04000007,2491.2,2490.4,4.01531]
[1730854285742,0.04000007,2491.2,2490.4,8.03063]
[1730854285959,0.44540708,2491.2,2490.2,4.01561]
[1730854286160,4.45964708,2491.2,2490.4,4.01532]
[1730854286345,4.45964708,2491.2,2490.2,4.01561]
[1730854286346,8.47386708,2491.2,2490.3,4.01555]
[1730854286563,4.01389,2491.4,2490.6,4.01507]
[1730854286866,0.04000007,2491.3,2490.9,4.01448]
[1730854287071,0.7664,2491.5,2491.2,4.01399]
[1730854287302,0.7664,2491.5,2491.0,0.08028602]
[1730854287303,0.7664,2491.9,2491.4,0.55]
[1730854287434,5.0,2492.7,2491.8,4.01311]
[1730854287435,0.7664,2492.4,2491.8,4.01311]
[1730854287633,0.04000007,2492.3,2491.6,8.02681]
[1730854287969,0.04000007,2492.3,2491.7,4.01327]
[1730854288172,0.04000007,2492.3,2491.6,4.01339]
[1730854288331,0.04000007,2492.3,2491.6,4.01338]
[1730854288538,0.04000007,2492.3,2491.7,4.01323]
[1730854288761,4.53421508,2492.3,2491.4,8.02746]
[1730854288934,4.01268,2492.1,2491.4,4.01366]
[1730854289156,4.01323,2491.8,2491.0,4.01436]
[1730854289463,0.08949493,2491.7,2491.0,4.01435]
[1730854289666,0.7714,2491.6,2491.0,4.01435]
[1730854289830,0.7714,2491.6,2490.8,4.01469]
[1730854289831,0.04000007,2491.5,2490.8,4.01469]
[1730854290189,0.04926324,2491.4,2491.0,4.01445]
[1730854291236,0.04926324,2491.4,2491.3,4.01396]
[1730854291474,4.7842,2492.1,2491.4,4.0137]
[1730854291673,4.7842,2492.1,2491.2,4.01406]
[1730854291674,4.05285007,2492.0,2491.2,4.01406]
[1730854291831,4.05285007,2492.0,2490.5,9.30397607]
[1730854291832,4.10098474,2492.0,2490.6,4.01503]
[1730854292181,0.04806467,2492.0,2491.5,4.01362]
[1730854292376,0.04806467,2492.0,2491.7,4.01327]
[1730854292675,0.04806467,2492.0,2491.6,4.01339]
[1730854292970,0.04806467,2492.0,2491.8,4.01315]
[1730854293272,0.04806467,2492.0,2491.7,35.0]
[1730854293273,0.04000007,2492.0,2491.7,35.0]
[1730854293436,0.7714,2492.1,2491.7,35.0]
[1730854293637,0.7714,2492.1,2491.7,4.01317]
[1730854293837,0.04835943,2492.0,2491.8,4.01312]
[1730854294258,0.7714,2492.1,2491.6,8.02676]
[1730854294471,0.04000007,2492.0,2491.4,8.02742]
[1730854294639,0.04000007,2492.0,2491.5,4.0135]
[1730854294839,0.04000007,2492.0,2491.1,4.01422]
[1730854294840,4.01319,2491.8,2491.1,4.01422]
[1730854295033,0.04000007,2492.0,2490.8,35.0]
[1730854295034,0.04788814,2491.7,2490.8,35.0]
[1730854295349,0.7714,2492.1,2491.7,4.01322]
[1730854295581,0.7714,2492.6,2491.8,0.08025795]
[1730854295752,0.7714,2492.6,2492.1,8.02514]
[1730854295953,0.7714,2492.6,2492.3,4.01235]
[1730854296179,0.7714,2492.6,2492.1,4.01255]
[1730854296361,0.04000007,2492.5,2491.9,39.01291]
[1730854296574,4.01107,2493.1,2491.9,35.0]
[1730854296773,5.0,2492.1,2490.7,0.93037761]
[1730854296971,4.01263,2492.2,2491.5,4.01356]
[1730854297272,4.0131,2491.9,2491.1,4.01414]
[1730854297780,5.0,2492.2,2490.9,39.0145]
[1730854297781,4.0136,2491.6,2490.9,4.0145]
[1730854298121,4.01349,2491.6,2491.0,0.08027988]
[1730854298290,5.0,2491.9,2490.8,4.01477]
[1730854298488,4.01454,2491.0,2490.0,4.01606]
[1730854298784,4.01454,2491.0,2490.2,4.01573]
[1730854298991,5.0,2491.6,2489.6,4.01666]
[1730854298992,4.01518,2490.6,2489.6,4.01666]
[1730854299146,4.01518,2490.6,2489.8,4.01623]
[1730854299343,0.04558189,2490.5,2490.0,4.01603]
[1730854299543,0.43088189,2490.5,2489.8,8.03248]
[1730854299744,0.43088189,2490.5,2489.8,4.20309348]
[1730854300074,0.43088189,2490.5,2489.8,4.01624]
[1730854300277,0.43088189,2490.5,2489.8,35.0]
[1730854300444,0.43088189,2490.5,2489.5,0.0215802]
[1730854300645,4.01566,2490.3,2489.6,4.01661]
[1730854300881,4.01604,2490.1,2489.5,0.0215802]
[1730854301185,4.01622,2489.9,2489.5,0.0215802]
[1730854301389,4.01638,2489.8,2489.5,0.0215802]
[1730854301544,0.3853,2489.7,2489.5,0.0215802]
[1730854301954,4.06044637,2489.6,2489.5,0.0215802]
[1730854303052,0.04374637,2489.6,2489.5,0.0215802]
[1730854305151,4.06044637,2489.6,2489.5,0.0215802]
[1730854307906,7.44574637,2489.6,2489.5,0.0215802]
[1730854308109,9.09198401,2489.6,2489.5,0.0215802]
[1730854309331,4.44574637,2489.6,2489.5,0.0215802]
[1730854310136,0.42904637,2489.6,2489.5,0.0215802]
[1730854310945,4.44574637,2489.6,2489.5,0.0215802]
[1730854315259,0.04374637,2489.6,2489.5,4.0384502]
[1730854315422,0.04374637,2489.6,2489.5,0.0215802]
[1730854315614,4.01631,2489.9,2489.5,0.0215802]
[1730854315908,4.40136,2490.0,2489.5,0.0215802]
[1730854316107,0.04161086,2489.8,2489.5,0.0215802]
[1730854316312,0.3853,2490.0,2489.5,0.0215802]
[1730854316552,4.01502,2490.7,2489.5,0.0215802]
[1730854316553,0.04154812,2489.7,2489.5,0.0215802]
[1730854316722,4.01586,2490.2,2489.5,0.0215802]
[1730854316932,4.40057,2490.5,2489.8,4.01638]
[1730854317133,0.04170036,2490.1,2489.8,4.01638]
[1730854317329,4.40057,2490.5,2489.7,35.0]
[1730854317642,0.04165928,2490.0,2489.6,4.01662]
[1730854317962,4.01545,2490.4,2489.6,8.03322]
[1730854317963,0.04160104,2489.9,2489.6,8.03322]
[1730854318112,0.3853,2490.5,2489.6,35.0]
[1730854318319,0.04166422,2489.8,2489.6,35.0]
[1730854318558,0.3853,2490.5,2489.6,42.92053902]
[1730854318559,4.01555,2490.4,2489.6,42.92053902]
[1730854318716,0.0416171,2489.7,2489.6,42.92053902]
[1730854318917,0.3853,2490.5,2489.6,38.90384902]
[1730854319251,4.01496,2490.7,2489.9,4.0162]
[1730854319449,4.40001,2490.9,2489.9,4.81591]
[1730854319662,4.39935,2491.3,2490.1,4.0159]
[1730854319862,5.3853,2491.3,2490.1,4.01589]
[1730854320028,4.01521,2490.6,2489.9,5.3056128]
[1730854320228,4.01502,2490.7,2490.1,35.0]
[1730854320430,5.0,2491.0,2489.7,4.0164]
[1730854320431,4.01553,2490.4,2489.7,4.0164]
[1730854320740,4.01575,2490.2,2489.5,0.8213802]
[1730854320948,4.01558,2490.3,2489.6,35.0]
[1730854321255,4.01572,2490.3,2489.6,4.0167]
[1730854321554,4.01442,2491.1,2489.9,4.01615]
[1730854321555,4.01516,2490.6,2489.9,4.01615]
[1730854321855,4.01516,2490.6,2489.8,0.7998]
[1730854321856,4.01541,2490.5,2489.8,0.7998]
[1730854322154,4.01541,2490.5,2489.8,4.81616]
[1730854322563,4.01555,2490.4,2489.8,5.00289348]
[1730854322764,4.01555,2490.4,2489.8,0.7998]
[1730854323048,4.01566,2490.3,2489.8,0.7998]
[1730854323254,4.01555,2490.4,2489.8,0.7998]
[1730854323415,4.01522,2490.6,2489.8,0.88012401]
[1730854323618,0.3853,2490.9,2489.8,0.88012401]
[1730854323619,0.3853,2490.9,2490.1,4.01579]
[1730854323845,0.3853,2491.3,2490.6,4.01494]
[1730854324121,4.01359,2491.6,2490.9,4.01451]
[1730854324320,0.3853,2491.7,2491.0,4.09463556]
[1730854324646,4.0134,2491.7,2491.0,4.01435]
[1730854324952,4.0135,2491.6,2490.8,4.01466]
[1730854325116,4.0135,2491.6,2490.9,4.01451]
[1730854325316,4.0135,2491.6,2490.8,4.496106]
[1730854325517,4.01364,2491.5,2490.9,35.0]
[1730854326021,4.01395,2491.4,2490.9,35.0]
[1730854326375,4.01453,2491.0,2490.6,0.7998]
[1730854326651,4.39948,2491.2,2490.3,4.01548]
[1730854326857,0.3853,2491.2,2490.3,4.497008]
[1730854327076,4.01374,2491.5,2490.7,4.01486]
[1730854327227,4.01389,2491.4,2490.7,4.01485]
[1730854327431,4.05200966,2491.4,2490.7,4.01485]
[1730854327627,4.01447,2491.0,2490.4,4.01538]
[1730854327825,4.01447,2491.0,2490.3,4.497018]
[1730854328039,0.03776548,2490.9,2490.3,0.481528]
[1730854328240,0.03776548,2490.9,2490.4,4.01533]
[1730854328463,4.01463,2490.9,2490.4,4.01533]
[1730854328789,5.0,2491.5,2490.6,4.01506]
[1730854328790,0.0375217,2490.8,2490.6,4.01506]
[1730854329381,0.03769947,2490.7,2490.6,4.01506]
[1730854329531,0.03769947,2490.7,2490.3,0.481528]
[1730854329532,4.01441,2491.1,2490.5,4.01523]
[1730854329732,0.03762446,2490.7,2490.3,4.496988]
[1730854329935,4.01425,2491.2,2490.5,4.01515]
[1730854330152,4.01425,2491.2,2490.7,4.01493]
[1730854330359,8.02852,2491.2,2490.6,4.416525]
[1730854330542,4.01425,2491.2,2490.6,4.416525]
[1730854330869,4.39824,2492.0,2490.9,0.55]
[1730854331044,4.01319,2491.8,2491.2,4.01411]